[Event "NJSK 2018 Meisjes AB"]
[Site "Assen, Netherlands"]
[Date "2018.04.29"]
[Round "1.4"]
[White "De Boer, Marit"]
[Black "Martinez, Anna"]
[Result "0-1"]
[TimeControl "40/90m+30m+30sec/move"]
[WhiteElo "1446"]
[BlackElo "1795"]

1. d4 {[%clk 01:30:58]} {[%emt 00:00:03]} Nf6 {[%clk 01:30:22]} {[%emt
00:00:40]} 2. c4 {[%clk 01:31:01]} {[%emt 00:00:23]} e6 {[%clk 01:30:48]}
{[%emt 00:00:07]} 3. Nc3 {[%clk 01:31:17]} {[%emt 00:00:12]} d5 {[%clk
01:30:54]} {[%emt 00:00:24]} 4. e3 {[%clk 01:31:25]} {[%emt 00:00:22]} Bb4
{[%clk 01:30:28]} {[%emt 00:00:56]} 5. Bd2 {[%clk 01:31:26]} {[%emt 00:00:29]}
Nbd7 {[%clk 01:30:26]} {[%emt 00:00:31]} 6. Nf3 {[%clk 01:30:43]} {[%emt
00:01:13]} O-O {[%clk 01:30:02]} {[%emt 00:00:55]} 7. Qc2 {[%clk 01:30:19]}
{[%emt 00:00:54]} b6 {[%clk 01:08:08]} {[%emt 00:22:23]} 8. Bd3 {[%clk
01:22:36]} {[%emt 00:08:13]} dxc4 {[%clk 01:05:56]} {[%emt 00:02:42]} 9. Bxc4
{[%clk 01:22:30]} {[%emt 00:00:36]} Bb7 {[%clk 01:06:18]} {[%emt 00:00:09]} 10.
a3 {[%clk 01:16:04]} {[%emt 00:06:56]} Be7 {[%clk 01:06:37]} {[%emt 00:00:11]}
11. e4 {[%clk 01:12:58]} {[%emt 00:03:36]} c5 {[%clk 01:00:39]} {[%emt
00:06:27]} 12. O-O {[%clk 01:04:19]} {[%emt 00:09:09]} cxd4 {[%clk 01:00:15]}
{[%emt 00:00:54]} 13. Nxd4 {[%clk 01:03:42]} {[%emt 00:01:07]} Rc8 {[%clk
01:00:32]} {[%emt 00:00:13]} 14. Bd3 {[%clk 00:50:01]} {[%emt 00:14:11]} Ne5
{[%clk 00:56:46]} {[%emt 00:04:17]} 15. Be3 {[%clk 00:41:50]} {[%emt 00:08:41]}
Nxd3 {[%clk 00:57:09]} {[%emt 00:00:07]} 16. Qxd3 {[%clk 00:42:09]} {[%emt
00:00:11]} e5 {[%clk 00:57:35]} {[%emt 00:00:03]} 17. Rfd1 {[%clk 00:39:27]}
{[%emt 00:03:12]} exd4 {[%clk 00:58:00]} {[%emt 00:00:06]} 18. Qxd4 {[%clk
00:39:29]} {[%emt 00:00:28]} Qxd4 {[%clk 00:58:09]} {[%emt 00:00:21]} 19. Bxd4
{[%clk 00:39:46]} {[%emt 00:00:13]} Rfd8 {[%clk 00:56:57]} {[%emt 00:01:41]} 20.
Kf1 {[%clk 00:39:01]} {[%emt 00:01:15]} Nxe4 {[%clk 00:56:55]} {[%emt
00:00:32]} 21. Nxe4 {[%clk 00:39:04]} {[%emt 00:00:27]} Bxe4 {[%clk 00:57:19]}
{[%emt 00:00:06]} 22. Bc3 {[%clk 00:39:03]} {[%emt 00:00:31]} Bd3+ {[%clk
00:56:08]} {[%emt 00:01:42]} 23. Ke1 {[%clk 00:38:34]} {[%emt 00:00:59]} Bg5
{[%clk 00:54:36]} {[%emt 00:02:02]} 24. f3 {[%clk 00:37:48]} {[%emt 00:01:15]}
Re8+ {[%clk 00:54:21]} {[%emt 00:00:45]} 25. Kf2 {[%clk 00:38:02]} {[%emt
00:00:16]} Be3+ {[%clk 00:54:44]} {[%emt 00:00:07]} 26. Kg3 {[%clk 00:38:20]}
{[%emt 00:00:12]} Rcd8 {[%clk 00:53:23]} {[%emt 00:01:52]} 27. h3 {[%clk
00:36:37]} {[%emt 00:02:12]} h5 {[%clk 00:51:47]} {[%emt 00:02:07]} 28. h4
{[%clk 00:35:17]} {[%emt 00:01:49]} Rd7 {[%clk 00:43:31]} {[%emt 00:08:45]} 29.
Re1 {[%clk 00:33:15]} {[%emt 00:02:32]} Re6 {[%clk 00:42:04]} {[%emt 00:01:59]}
30. Rad1 {[%clk 00:31:56]} {[%emt 00:01:49]} Rg6+ {[%clk 00:42:05]} {[%emt
00:00:29]} 31. Kh2 {[%clk 00:32:12]} {[%emt 00:00:13]} Bf4 {[%clk 00:41:36]}
{[%emt 00:01:00]} 32. Kh1 {[%clk 00:32:29]} {[%emt 00:00:12]} Bf5 {[%clk
00:40:14]} {[%emt 00:01:53]} 33. Rxd7 {[%clk 00:31:41]} {[%emt 00:01:18]} Bxd7
{[%clk 00:40:40]} {[%emt 00:00:04]} 34. Re4 {[%clk 00:31:37]} {[%emt 00:00:34]}
Bg3 {[%clk 00:40:38]} {[%emt 00:00:32]} 35. Be1 {[%clk 00:30:56]} {[%emt
00:01:10]} Bxe1 {[%clk 00:40:59]} {[%emt 00:00:09]} 36. Rxe1 {[%clk 00:31:21]}
{[%emt 00:00:05]} Rd6 {[%clk 00:40:37]} {[%emt 00:00:52]} 37. Re2 {[%clk
00:31:36]} {[%emt 00:00:16]} Kf8 {[%clk 00:40:42]} {[%emt 00:00:24]} 38. Kh2
{[%clk 00:31:49]} {[%emt 00:00:17]} g6 {[%clk 00:41:00]} {[%emt 00:00:12]} 39.
Kg3 {[%clk 00:31:57]} {[%emt 00:00:22]} Re6 {[%clk 00:41:00]} {[%emt 00:00:31]}
40. Rc2 {[%clk 00:32:06]} {[%emt 00:00:20]} Rc6 {[%clk 00:41:20]} {[%emt
00:00:10]} 41. Re2 {[%clk 00:32:26]} {[%emt 00:00:10]} Be6 {[%clk 00:41:39]}
{[%emt 00:00:12]} 42. Kf4 {[%clk 00:32:32]} {[%emt 00:00:23]} Rc4+ {[%clk
00:41:45]} {[%emt 00:00:24]} 43. Kg3 {[%clk 00:32:40]} {[%emt 00:00:22]} Ke7
{[%clk 00:41:34]} {[%emt 00:00:42]} 44. f4 {[%clk 00:32:42]} {[%emt 00:00:28]}
Kf6 {[%clk 00:41:51]} {[%emt 00:00:13]} 0-1

[Event "NJSK 2018 Meisjes AB"]
[Site "Assen, Netherlands"]
[Date "2018.04.29"]
[Round "1.7"]
[White "Waardenburg, Marlinde"]
[Black "Heskes, Ebba"]
[Result "1-0"]
[TimeControl "40/90m+30m+30sec/move"]
[WhiteElo "1686"]
[BlackElo "1266"]

1. e4 {[%clk 01:30:58]} e5 {[%clk 01:30:52]} {[%emt 00:00:10]} 2. Nf3 {[%clk
01:31:23]} {[%emt 00:00:06]} Nc6 {[%clk 01:31:00]} {[%emt 00:00:20]} 3. Bb5
{[%clk 01:31:45]} {[%emt 00:00:06]} d6 {[%clk 01:31:05]} {[%emt 00:00:27]} 4.
c3 {[%clk 01:30:07]} {[%emt 00:02:06]} Bd7 {[%clk 01:28:57]} {[%emt 00:02:38]}
5. Ba4 {[%clk 01:30:00]} {[%emt 00:00:36]} Nf6 {[%clk 01:28:25]} {[%emt
00:01:02]} 6. d3 {[%clk 01:29:27]} {[%emt 00:01:04]} Be7 {[%clk 01:27:02]}
{[%emt 00:01:53]} 7. O-O {[%clk 01:29:28]} {[%emt 00:00:28]} O-O {[%clk
01:26:56]} {[%emt 00:00:37]} 8. h3 {[%clk 01:24:58]} {[%emt 00:04:59]} h6
{[%clk 01:23:38]} {[%emt 00:03:49]} 9. Re1 {[%clk 01:24:23]} {[%emt 00:01:05]}
a6 {[%clk 01:18:29]} {[%emt 00:05:40]} 10. Nbd2 {[%clk 01:24:09]} {[%emt
00:00:43]} b5 {[%clk 01:12:32]} {[%emt 00:06:27]} 11. Bc2 {[%clk 01:24:21]}
{[%emt 00:00:17]} Be6 {[%clk 01:05:47]} {[%emt 00:07:16]} 12. d4 {[%clk
01:18:39]} {[%emt 00:06:12]} exd4 {[%clk 01:05:49]} {[%emt 00:00:28]} 13. Nxd4
{[%clk 01:17:48]} {[%emt 00:01:21]} Ne5 {[%clk 01:02:24]} {[%emt 00:03:55]} 14.
f4 {[%clk 01:13:28]} {[%emt 00:04:50]} Nc4 {[%clk 01:00:26]} {[%emt 00:02:28]}
15. Nxe6 {[%clk 01:00:28]} {[%emt 00:13:30]} fxe6 {[%clk 01:00:28]} {[%emt
00:00:28]} 16. Nxc4 {[%clk 01:00:24]} {[%emt 00:00:33]} bxc4 {[%clk 01:00:34]}
{[%emt 00:00:24]} 17. Qe2 {[%clk 01:00:18]} {[%emt 00:00:36]} d5 {[%clk
00:56:41]} {[%emt 00:04:23]} 18. e5 {[%clk 00:57:32]} {[%emt 00:03:16]} Nd7
{[%clk 00:50:58]} {[%emt 00:06:15]} 19. b4 {[%clk 00:46:05]} {[%emt 00:11:57]}
c6 {[%clk 00:47:17]} {[%emt 00:04:10]} 20. Qg4 {[%clk 00:46:07]} {[%emt
00:00:28]} Qb6+ {[%clk 00:36:21]} {[%emt 00:11:26]} 21. Kh1 {[%clk 00:44:52]}
{[%emt 00:01:41]} c5 {[%clk 00:36:09]} {[%emt 00:00:45]} 22. Qg6 {[%clk
00:44:19]} {[%emt 00:01:03]} Nf6 {[%clk 00:28:50]} {[%emt 00:07:51]} 23. exf6
{[%clk 00:41:44]} {[%emt 00:03:04]} Bxf6 {[%clk 00:28:47]} {[%emt 00:00:33]} 24.
bxc5 {[%clk 00:36:38]} {[%emt 00:05:36]} Qc6 {[%clk 00:26:54]} {[%emt
00:02:23]} 25. Bd2 {[%clk 00:31:10]} {[%emt 00:05:57]} d4 {[%clk 00:23:35]}
{[%emt 00:03:49]} 26. cxd4 {[%clk 00:27:39]} {[%emt 00:04:01]} Bxd4 {[%clk
00:22:06]} {[%emt 00:02:00]} 27. Rxe6 {[%clk 00:26:38]} {[%emt 00:01:31]} Qd7
{[%clk 00:19:30]} {[%emt 00:03:06]} 28. Rae1 {[%clk 00:25:58]} {[%emt
00:01:09]} Bf6 {[%clk 00:17:32]} {[%emt 00:02:28]} 29. Qh7+ {[%clk 00:26:19]}
{[%emt 00:00:10]} Kf7 {[%clk 00:17:50]} {[%emt 00:00:12]} 30. Bg6# {[%clk
00:26:45]} {[%emt 00:00:02]} 1-0

[Event "NJSK 2018 Meisjes AB"]
[Site "Assen, Netherlands"]
[Date "2018.04.30"]
[Round "2.6"]
[White "Heskes, Ebba"]
[Black "Tiggelman, Laura"]
[Result "0-1"]
[TimeControl "40/90m+30m+30sec/move"]
[WhiteElo "1266"]
[BlackElo "1536"]

1. e4 {[%clk 01:30:57]} {[%emt 00:00:02]} c5 {[%clk 01:30:55]} {[%emt
00:00:05]} 2. Nf3 {[%clk 01:31:17]} {[%emt 00:00:09]} d6 {[%clk 01:31:20]}
{[%emt 00:00:06]} 3. d4 {[%clk 01:31:26]} {[%emt 00:00:20]} cxd4 {[%clk
01:31:43]} {[%emt 00:00:07]} 4. Nxd4 {[%clk 01:31:37]} {[%emt 00:00:19]} Nf6
{[%clk 01:32:05]} {[%emt 00:00:09]} 5. Nc3 {[%clk 01:31:52]} {[%emt 00:00:14]}
g6 {[%clk 01:32:27]} {[%emt 00:00:08]} 6. Bc4 {[%clk 01:26:42]} {[%emt
00:05:40]} Bg7 {[%clk 01:32:31]} {[%emt 00:00:26]} 7. O-O {[%clk 01:26:15]}
{[%emt 00:00:58]} O-O {[%clk 01:32:33]} {[%emt 00:00:27]} 8. h3 {[%clk
01:26:35]} {[%emt 00:00:10]} Nc6 {[%clk 01:31:56]} {[%emt 00:01:08]} 9. Nf3
{[%clk 01:24:41]} {[%emt 00:02:24]} Bd7 {[%clk 01:28:33]} {[%emt 00:03:53]} 10.
Bd2 {[%clk 01:18:31]} {[%emt 00:06:39]} Rc8 {[%clk 01:25:00]} {[%emt 00:04:03]}
11. Bb3 {[%clk 01:16:09]} {[%emt 00:02:52]} b5 {[%clk 01:14:40]} {[%emt
00:10:51]} 12. Re1 {[%clk 01:10:38]} {[%emt 00:06:00]} Qb6 {[%clk 01:03:48]}
{[%emt 00:11:23]} 13. Bg5 {[%clk 00:53:23]} {[%emt 00:17:43]} Rfe8 {[%clk
00:59:20]} {[%emt 00:04:59]} 14. Qd2 {[%clk 00:48:33]} {[%emt 00:05:20]} a5
{[%clk 00:51:40]} {[%emt 00:08:11]} 15. a4 {[%clk 00:45:39]} {[%emt 00:03:24]}
bxa4 {[%clk 00:30:36]} {[%emt 00:21:34]} 16. Nxa4 {[%clk 00:42:06]} {[%emt
00:04:02]} Qc7 {[%clk 00:26:07]} {[%emt 00:04:58]} 17. c3 {[%clk 00:33:37]}
{[%emt 00:09:00]} Red8 {[%clk 00:17:24]} {[%emt 00:09:14]} 18. Bh6 {[%clk
00:30:39]} {[%emt 00:03:26]} Rb8 {[%clk 00:09:40]} {[%emt 00:08:15]} 19. Bxg7
{[%clk 00:28:56]} {[%emt 00:02:13]} Kxg7 {[%clk 00:10:03]} {[%emt 00:00:08]} 20.
Qc2 {[%clk 00:28:52]} {[%emt 00:00:33]} Qb7 {[%clk 00:09:37]} {[%emt 00:00:56]}
21. Bc4 {[%clk 00:23:38]} {[%emt 00:05:43]} Ne5 {[%clk 00:08:29]} {[%emt
00:01:39]} 22. Nxe5 {[%clk 00:20:44]} {[%emt 00:03:24]} dxe5 {[%clk 00:08:56]}
{[%emt 00:00:03]} 23. Nc5 {[%clk 00:20:39]} {[%emt 00:00:34]} Qb6 {[%clk
00:06:37]} {[%emt 00:02:50]} 24. Nd3 {[%clk 00:17:10]} {[%emt 00:03:58]} Qc7
{[%clk 00:06:18]} {[%emt 00:00:50]} 25. Bb3 {[%clk 00:15:20]} {[%emt 00:02:20]}
Bc6 {[%clk 00:04:34]} {[%emt 00:02:15]} 26. Nc5 {[%clk 00:13:21]} {[%emt
00:02:29]} Qb6 {[%clk 00:04:09]} {[%emt 00:00:53]} 27. Nd3 {[%clk 00:02:38]}
{[%emt 00:11:14]} Qxb3 {[%clk 00:04:31]} {[%emt 00:00:08]} 28. Qxb3 {[%clk
00:02:55]} {[%emt 00:00:13]} Rxb3 {[%clk 00:04:54]} {[%emt 00:00:06]} 29. Nxe5
{[%clk 00:03:18]} {[%emt 00:00:08]} Bxe4 {[%clk 00:04:51]} {[%emt 00:00:33]} 30.
Rxa5 {[%clk 00:02:55]} {[%emt 00:00:53]} Rxb2 {[%clk 00:05:07]} {[%emt
00:00:14]} 31. c4 {[%clk 00:03:04]} {[%emt 00:00:21]} Rdd2 {[%clk 00:03:44]}
{[%emt 00:01:53]} 32. Rf1 {[%clk 00:03:10]} {[%emt 00:00:23]} Bf5 {[%clk
00:03:34]} {[%emt 00:00:41]} 33. c5 {[%clk 00:03:14]} {[%emt 00:00:27]} Ne4
{[%clk 00:03:26]} {[%emt 00:00:37]} 34. Nc4 {[%clk 00:02:49]} {[%emt 00:00:55]}
Ra2 {[%clk 00:03:01]} {[%emt 00:00:55]} 35. Nxd2 {[%clk 00:02:15]} {[%emt
00:01:04]} Rxa5 {[%clk 00:03:25]} {[%emt 00:00:06]} 36. Nxe4 {[%clk 00:02:29]}
{[%emt 00:00:16]} Bxe4 {[%clk 00:03:46]} {[%emt 00:00:09]} 37. Re1 {[%clk
00:02:45]} {[%emt 00:00:13]} Bc6 {[%clk 00:03:48]} {[%emt 00:00:28]} 38. Rxe7
{[%clk 00:03:06]} {[%emt 00:00:10]} Rxc5 {[%clk 00:04:04]} {[%emt 00:00:14]} 39.
Kh2 {[%clk 00:03:29]} {[%emt 00:00:07]} Rc2 {[%clk 00:04:21]} {[%emt 00:00:13]}
40. Kg3 {[%clk 00:03:48]} {[%emt 00:00:11]} Rc3+ {[%clk 00:03:52]} {[%emt
00:01:00]} 41. f3 {[%clk 00:03:31]} {[%emt 00:00:47]} Kf6 {[%clk 00:03:34]}
{[%emt 00:00:46]} 42. Ra7 {[%clk 00:02:58]} {[%emt 00:01:04]} Bb5 {[%clk
00:02:52]} {[%emt 00:01:12]} 43. Rb7 {[%clk 00:03:00]} {[%emt 00:00:27]} Bd3
{[%clk 00:29:19]} {[%emt 00:04:04]} 44. Ra7 {[%clk 00:30:00]} {[%emt 00:03:31]}
Rc2 {[%clk 00:28:36]} {[%emt 00:01:12]} 45. Ra1 {[%clk 00:28:44]} {[%emt
00:01:45]} h5 {[%clk 00:28:28]} {[%emt 00:00:39]} 46. h4 {[%clk 00:28:15]}
{[%emt 00:00:59]} Ke6 {[%clk 00:26:25]} {[%emt 00:02:28]} 47. Rd1 {[%clk
00:25:18]} {[%emt 00:03:32]} Bc4 {[%clk 00:25:11]} {[%emt 00:01:44]} 48. Re1+
{[%clk 00:24:37]} {[%emt 00:01:11]} Re2 {[%clk 00:24:45]} {[%emt 00:00:56]} 49.
Rc1 {[%clk 00:24:56]} {[%emt 00:00:11]} Bd5 {[%clk 00:24:34]} {[%emt 00:00:41]}
50. Rc8 {[%clk 00:22:50]} {[%emt 00:02:36]} Kf5 {[%clk 00:23:46]} {[%emt
00:01:18]} 51. Rc5 {[%clk 00:22:42]} {[%emt 00:00:37]} Rd2 {[%clk 00:24:09]}
{[%emt 00:00:08]} 52. Rb5 {[%clk 00:22:04]} {[%emt 00:01:08]} f6 {[%clk
00:23:08]} {[%emt 00:01:32]} 53. Kh3 {[%clk 00:17:30]} {[%emt 00:05:03]} Rd3
{[%clk 00:22:33]} {[%emt 00:01:04]} 54. Kg3 {[%clk 00:15:44]} {[%emt 00:02:16]}
g5 {[%clk 00:22:37]} {[%emt 00:00:25]} 55. hxg5 {[%clk 00:15:37]} {[%emt
00:00:38]} fxg5 {[%clk 00:23:03]} {[%emt 00:00:05]} 56. Ra5 {[%clk 00:14:54]}
{[%emt 00:01:14]} Rd4 {[%clk 00:20:27]} {[%emt 00:03:05]} 57. Rb5 {[%clk
00:11:51]} {[%emt 00:03:34]} h4+ {[%clk 00:18:07]} {[%emt 00:02:49]} 58. Kf2
{[%clk 00:10:46]} {[%emt 00:01:35]} Kf4 {[%clk 00:14:01]} {[%emt 00:04:36]} 59.
Rxd5 {[%clk 00:08:24]} {[%emt 00:02:52]} Rxd5 {[%clk 00:14:12]} {[%emt
00:00:19]} 60. g3+ {[%clk 00:08:41]} {[%emt 00:00:12]} hxg3+ {[%clk 00:14:25]}
{[%emt 00:00:17]} 61. Kg2 {[%clk 00:09:04]} {[%emt 00:00:07]} Rd2+ {[%clk
00:14:46]} {[%emt 00:00:09]} 62. Kh3 {[%clk 00:08:48]} {[%emt 00:00:47]} Rh2
{[%clk 00:14:57]} {[%emt 00:00:19]} 0-1

[Event "NJSK 2018 Meisjes AB"]
[Site "Assen, Netherlands"]
[Date "2018.04.30"]
[Round "2.7"]
[White "Adema, Marrit"]
[Black "De Boer, Marit"]
[Result "1-0"]
[TimeControl "40/90m+30m+30sec/move"]
[WhiteElo "1497"]
[BlackElo "1446"]

1. d4 {[%clk 01:30:54]} {[%emt 00:00:04]} d5 {[%emt 00:00:12]} 2. c4 {[%clk
01:31:20]} c6 {[%clk 01:31:14]} {[%emt 00:00:09]} 3. Nf3 {[%clk 01:31:46]}
{[%emt 00:00:04]} Nf6 {[%clk 01:31:29]} {[%emt 00:00:15]} 4. e3 {[%clk
01:32:10]} {[%emt 00:00:06]} Bf5 {[%clk 01:31:24]} {[%emt 00:00:35]} 5. Nc3
{[%clk 01:32:30]} {[%emt 00:00:09]} e6 {[%clk 01:31:32]} {[%emt 00:00:23]} 6.
Nh4 {[%clk 01:32:01]} {[%emt 00:00:59]} Bg6 {[%clk 01:31:34]} {[%emt 00:00:28]}
7. Be2 {[%clk 01:30:21]} {[%emt 00:02:10]} Bd6 {[%clk 01:30:13]} {[%emt
00:01:50]} 8. O-O {[%clk 01:30:09]} {[%emt 00:00:43]} Nbd7 {[%clk 01:29:45]}
{[%emt 00:00:58]} 9. Bd2 {[%clk 01:27:27]} {[%emt 00:03:11]} O-O {[%clk
01:27:58]} {[%emt 00:02:18]} 10. Nxg6 {[%clk 01:26:13]} {[%emt 00:01:43]} fxg6
{[%clk 01:26:58]} {[%emt 00:01:31]} 11. Qc2 {[%clk 01:20:13]} {[%emt 00:06:30]}
Qb8 {[%clk 01:23:12]} {[%emt 00:04:16]} 12. h3 {[%clk 01:14:39]} {[%emt
00:06:04]} Re8 {[%clk 01:11:27]} {[%emt 00:12:15]} 13. Rab1 {[%clk 01:06:23]}
{[%emt 00:08:46]} a5 {[%clk 01:00:06]} {[%emt 00:11:51]} 14. a3 {[%clk
00:58:54]} {[%emt 00:07:58]} Qc7 {[%clk 00:57:12]} {[%emt 00:03:24]} 15. c5
{[%clk 00:54:28]} {[%emt 00:04:56]} Be7 {[%clk 00:57:18]} {[%emt 00:00:25]} 16.
b4 {[%clk 00:49:25]} {[%emt 00:05:33]} axb4 {[%clk 00:56:13]} {[%emt 00:01:34]}
17. axb4 {[%clk 00:48:58]} {[%emt 00:00:58]} e5 {[%clk 00:54:42]} {[%emt
00:02:01]} 18. b5 {[%clk 00:46:07]} {[%emt 00:03:21]} Kh8 {[%clk 00:45:30]}
{[%emt 00:09:41]} 19. Ra1 {[%clk 00:38:37]} {[%emt 00:08:01]} Bf8 {[%clk
00:35:03]} {[%emt 00:10:57]} 20. Rfe1 {[%clk 00:30:54]} {[%emt 00:08:13]} Ng8
{[%clk 00:28:37]} {[%emt 00:06:56]} 21. Ra4 {[%clk 00:27:30]} {[%emt 00:03:53]}
Rec8 {[%clk 00:22:26]} {[%emt 00:06:41]} 22. Rea1 {[%clk 00:25:36]} {[%emt
00:02:25]} Qd8 {[%clk 00:22:18]} {[%emt 00:00:38]} 23. Qb3 {[%clk 00:19:43]}
{[%emt 00:06:22]} Ngf6 {[%clk 00:19:07]} {[%emt 00:03:41]} 24. Ra7 {[%clk
00:18:49]} {[%emt 00:01:24]} Rcb8 {[%clk 00:17:21]} {[%emt 00:02:17]} 25. R1a4
{[%clk 00:16:29]} {[%emt 00:02:49]} Qc8 {[%clk 00:16:05]} {[%emt 00:01:47]} 26.
Qa2 {[%clk 00:16:02]} {[%emt 00:00:57]} Rxa7 {[%clk 00:16:07]} {[%emt
00:00:28]} 27. Rxa7 {[%clk 00:16:25]} {[%emt 00:00:07]} Kg8 {[%clk 00:13:12]}
{[%emt 00:03:24]} 28. Qa4 {[%clk 00:13:56]} {[%emt 00:03:00]} e4 {[%clk
00:08:18]} {[%emt 00:05:24]} 29. Na2 {[%clk 00:13:02]} {[%emt 00:01:24]} Qc7
{[%clk 00:06:36]} {[%emt 00:02:12]} 30. Nb4 {[%clk 00:11:55]} {[%emt 00:01:37]}
cxb5 {[%clk 00:06:38]} {[%emt 00:00:27]} 31. Bxb5 {[%clk 00:11:55]} {[%emt
00:00:30]} Qc8 {[%clk 00:06:54]} {[%emt 00:00:14]} 32. Nxd5 {[%clk 00:10:11]}
{[%emt 00:02:14]} Qd8 {[%clk 00:05:02]} {[%emt 00:02:21]} 33. Nxf6+ {[%clk
00:09:33]} {[%emt 00:01:08]} Nxf6 {[%clk 00:05:20]} {[%emt 00:00:13]} 34. Ba5
{[%clk 00:09:13]} {[%emt 00:00:51]} Qc8 {[%clk 00:05:19]} {[%emt 00:00:30]} 35.
Bc4+ {[%clk 00:07:53]} {[%emt 00:01:51]} Kh8 {[%clk 00:05:30]} {[%emt
00:00:18]} 36. Qb3 {[%clk 00:07:15]} {[%emt 00:01:08]} Ra8 {[%clk 00:03:25]}
{[%emt 00:02:35]} 37. Rxb7 {[%clk 00:06:03]} {[%emt 00:01:42]} Rxa5 {[%clk
00:01:36]} {[%emt 00:02:20]} 38. Rb8 {[%clk 00:04:51]} {[%emt 00:01:41]} Ra1+
{[%clk 00:01:56]} {[%emt 00:00:11]} 39. Bf1 {[%clk 00:05:02]} {[%emt 00:00:18]}
Ra3 {[%clk 00:00:58]} {[%emt 00:01:28]} 40. Rxc8 {[%clk 00:04:53]} {[%emt
00:00:38]} Rxb3 {[%clk 00:01:13]} {[%emt 00:00:16]} 41. Rxf8 {[%clk 00:05:18]}
{[%emt 00:00:05]} Ng8 {[%clk 00:01:22]} {[%emt 00:00:21]} 42. Bc4 {[%clk
00:04:50]} {[%emt 00:00:59]} 1-0